[Event "Titled Tuesday Blitz November 30 2021"]
[White "Makarian, Rudik"]
[Black "Mitusov, Semen"]
[WhiteFideId "44105681"]
[BlackFideId "14151049"]
[WhiteElo "2486"]
[BlackElo "2246"]
[Result "1-0"]
[Round "01"]
[TimeControl "180+1"]
[Date "2021.11.30"]
[WhiteClock "0:00:11"]
[BlackClock "0:00:10"]

1. d4 {[%clk 0:03:00]}  d5 {[%clk 0:02:59]} 2. c4 {[%clk 0:03:01]}  dxc4 {[%clk 0:02:59]} 3. Nf3 {[%clk 0:03:00]}  Nf6 {[%clk 0:02:59]} 4. e3 {[%clk 0:02:54]}  Bg4 {[%clk 0:02:59]} 5. Bxc4 {[%clk 0:02:54]}  e6 {[%clk 0:02:59]} 6. h3 {[%clk 0:02:51]}  Bh5 {[%clk 0:02:58]} 7. O-O {[%clk 0:02:49]}  a6 {[%clk 0:02:57]} 8. Be2 {[%clk 0:02:41]}  Nc6 {[%clk 0:02:55]} 9. b3 {[%clk 0:02:38]}  Bd6 {[%clk 0:02:54]} 10. Bb2 {[%clk 0:02:36]}  O-O {[%clk 0:02:53]} 11. Nbd2 {[%clk 0:02:34]}  Qe7 {[%clk 0:02:48]} 12. Nc4 {[%clk 0:02:34]}  Rad8 {[%clk 0:02:38]} 13. Rc1 {[%clk 0:02:13]}  h6 {[%clk 0:02:22]} 14. Ne1 {[%clk 0:01:46]}  Bxe2 {[%clk 0:02:15]} 15. Qxe2 {[%clk 0:01:47]}  e5 {[%clk 0:02:13]} 16. dxe5 {[%clk 0:01:45]}  Nxe5 {[%clk 0:02:10]} 17. Nxd6 {[%clk 0:01:45]}  cxd6 {[%clk 0:02:09]} 18. Nf3 {[%clk 0:01:38]}  Rd7 {[%clk 0:01:55]} 19. Rfd1 {[%clk 0:01:37]}  Rfd8 {[%clk 0:01:55]} 20. Nd4 {[%clk 0:01:37]}  Ne4 {[%clk 0:01:52]} 21. Qh5 {[%clk 0:01:30]}  Nf6 {[%clk 0:01:33]} 22. Qe2 {[%clk 0:01:28]}  Ne4 {[%clk 0:01:32]} 23. f4 {[%clk 0:01:25]}  Nc6 {[%clk 0:01:00]} 24. Nf5 {[%clk 0:01:25]}  Qe6 {[%clk 0:01:00]} 25. Nxg7 {[%clk 0:01:17]}  Qg6 {[%clk 0:00:59]} 26. Nh5 {[%clk 0:01:13]}  d5 {[%clk 0:00:55]} 27. Qg4 {[%clk 0:00:57]}  Ne7 {[%clk 0:00:47]} 28. Nf6+ {[%clk 0:00:53]}  Nxf6 {[%clk 0:00:46]} 29. Bxf6 {[%clk 0:00:54]}  Qxg4 {[%clk 0:00:44]} 30. hxg4 {[%clk 0:00:55]}  Kf8 {[%clk 0:00:42]} 31. Rd3 {[%clk 0:00:54]}  Rd6 {[%clk 0:00:41]} 32. Bxe7+ {[%clk 0:00:44]}  Kxe7 {[%clk 0:00:40]} 33. Rc7+ {[%clk 0:00:45]}  R8d7 {[%clk 0:00:40]} 34. Rxd7+ {[%clk 0:00:45]}  Kxd7 {[%clk 0:00:39]} 35. Kf2 {[%clk 0:00:45]}  Kc6 {[%clk 0:00:37]} 36. Kf3 {[%clk 0:00:33]}  Rd7 {[%clk 0:00:35]} 37. f5 {[%clk 0:00:31]}  f6 {[%clk 0:00:32]} 38. Rd1 {[%clk 0:00:21]}  Kb5 {[%clk 0:00:29]} 39. Rh1 {[%clk 0:00:21]}  Rh7 {[%clk 0:00:28]} 40. Rd1 {[%clk 0:00:21]}  Rd7 {[%clk 0:00:27]} 41. Ke2 {[%clk 0:00:21]}  Kb4 {[%clk 0:00:27]} 42. Kd3 {[%clk 0:00:20]}  Ka3 {[%clk 0:00:27]} 43. Rd2 {[%clk 0:00:20]}  Re7 {[%clk 0:00:25]} 44. Kd4 {[%clk 0:00:19]}  Re4+ {[%clk 0:00:25]} 45. Kxd5 {[%clk 0:00:19]}  Rxe3 {[%clk 0:00:25]} 46. Kc5 {[%clk 0:00:17]}  b5 {[%clk 0:00:22]} 47. Rd6 {[%clk 0:00:15]}  Kxa2 {[%clk 0:00:21]} 48. Rxa6+ {[%clk 0:00:15]}  Kxb3 {[%clk 0:00:22]} 49. Kxb5 {[%clk 0:00:14]}  Rg3 {[%clk 0:00:21]} 50. Rxf6 {[%clk 0:00:15]}  Rxg4 {[%clk 0:00:21]} 51. Kc5 {[%clk 0:00:14]}  h5 {[%clk 0:00:18]} 52. Kd5 {[%clk 0:00:11]}  Rxg2 {[%clk 0:00:18]} 53. Rh6 {[%clk 0:00:12]}  Rh2 {[%clk 0:00:12]} 54. f6 {[%clk 0:00:12]}  Kc3 {[%clk 0:00:11]} 55. f7 {[%clk 0:00:11]}  Rf2 {[%clk 0:00:10]} 56. Ke6 {[%clk 0:00:12]}  Kd4 {[%clk 0:00:10]} 57. Rxh5 {[%clk 0:00:11]}  Re2+ {[%clk 0:00:10]} 58. Kf6 {[%clk 0:00:11]}  Rf2+ {[%clk 0:00:10]} 59. Rf5 {[%clk 0:00:11]} 1-0


[Site "https://www.chess.com"]

[Event "Titled Tuesday Blitz November 30 2021"]
[White "Martin Carmona, Gaston Manuel"]
[Black "Tabatabaei, M. Amin"]
[WhiteFideId "22284567"]
[BlackFideId "12521213"]
[WhiteElo "2161"]
[BlackElo "2555"]
[Result "0-1"]
[Round "01"]
[TimeControl "180+1"]
[Date "2021.11.30"]
[WhiteClock "0:00:32"]
[BlackClock "0:01:52"]

1. e4 {[%clk 0:02:59]}  c6 {[%clk 0:02:58]} 2. d4 {[%clk 0:02:55]}  d5 {[%clk 0:02:59]} 3. exd5 {[%clk 0:02:56]}  cxd5 {[%clk 0:02:59]} 4. Bd3 {[%clk 0:02:57]}  Nf6 {[%clk 0:03:00]} 5. c3 {[%clk 0:02:56]}  Nc6 {[%clk 0:02:59]} 6. Nf3 {[%clk 0:02:55]}  g6 {[%clk 0:03:00]} 7. Bf4 {[%clk 0:02:54]}  Bf5 {[%clk 0:03:01]} 8. O-O {[%clk 0:02:54]}  Bxd3 {[%clk 0:03:00]} 9. Qxd3 {[%clk 0:02:55]}  e6 {[%clk 0:03:01]} 10. Nbd2 {[%clk 0:02:55]}  Bd6 {[%clk 0:03:01]} 11. Bh6 {[%clk 0:02:47]}  Ng4 {[%clk 0:02:55]} 12. Bg7 {[%clk 0:02:38]}  Rg8 {[%clk 0:02:55]} 13. Be5 {[%clk 0:02:39]}  Ngxe5 {[%clk 0:02:52]} 14. Nxe5 {[%clk 0:02:39]}  Nxe5 {[%clk 0:02:50]} 15. dxe5 {[%clk 0:02:39]}  Bxe5 {[%clk 0:02:51]} 16. Rfe1 {[%clk 0:02:38]}  Bf6 {[%clk 0:02:51]} 17. Rad1 {[%clk 0:02:05]}  Kf8 {[%clk 0:02:49]} 18. c4 {[%clk 0:02:02]}  Kg7 {[%clk 0:02:42]} 19. Qb3 {[%clk 0:01:50]}  Qb6 {[%clk 0:02:38]} 20. cxd5 {[%clk 0:01:47]}  exd5 {[%clk 0:02:36]} 21. Qxd5 {[%clk 0:01:45]}  Rad8 {[%clk 0:02:29]} 22. Qb3 {[%clk 0:01:16]}  Qxb3 {[%clk 0:02:27]} 23. Nxb3 {[%clk 0:01:15]}  Bxb2 {[%clk 0:02:27]} 24. g3 {[%clk 0:01:11]}  Bf6 {[%clk 0:02:21]} 25. Nc5 {[%clk 0:01:08]}  b6 {[%clk 0:02:18]} 26. Ne4 {[%clk 0:01:08]}  Rxd1 {[%clk 0:02:11]} 27. Rxd1 {[%clk 0:01:08]}  Rd8 {[%clk 0:02:12]} 28. Rc1 {[%clk 0:01:01]}  Rd7 {[%clk 0:02:13]} 29. Rc8 {[%clk 0:00:59]}  Bd4 {[%clk 0:02:09]} 30. Kg2 {[%clk 0:00:57]}  b5 {[%clk 0:02:04]} 31. Rb8 {[%clk 0:00:55]}  Bb6 {[%clk 0:02:04]} 32. g4 {[%clk 0:00:44]}  h6 {[%clk 0:01:57]} 33. h4 {[%clk 0:00:38]}  Rd4 {[%clk 0:01:54]} 34. f3 {[%clk 0:00:35]}  Ra4 {[%clk 0:01:54]} 35. Nc3 {[%clk 0:00:33]}  Ra3 {[%clk 0:01:51]} 36. Nxb5 {[%clk 0:00:33]}  Rxa2+ {[%clk 0:01:52]} 37. Kg3 {[%clk 0:00:32]}  Rb2 {[%clk 0:01:52]} 0-1


[Site "https://www.chess.com"]

[Event "Titled Tuesday Blitz November 30 2021"]
[White "Martinez Alcantara, Jose Eduardo"]
[Black "Demin, Vladimir"]
[WhiteFideId "3805662"]
[BlackFideId "4167457"]
[WhiteElo "2690"]
[BlackElo "2500"]
[Result "1-0"]
[Round "01"]
[TimeControl "180+1"]
[Date "2021.11.30"]
[WhiteClock "0:01:00"]
[BlackClock "0:00:20"]

1. e4 {[%clk 0:03:00]}  Nf6 {[%clk 0:02:59]} 2. e5 {[%clk 0:03:00]}  Nd5 {[%clk 0:02:59]} 3. d4 {[%clk 0:03:01]}  d6 {[%clk 0:02:58]} 4. Nf3 {[%clk 0:03:01]}  dxe5 {[%clk 0:02:58]} 5. Nxe5 {[%clk 0:03:02]}  g6 {[%clk 0:02:59]} 6. Be2 {[%clk 0:02:57]}  Bg7 {[%clk 0:02:58]} 7. O-O {[%clk 0:02:58]}  O-O {[%clk 0:02:58]} 8. c4 {[%clk 0:02:58]}  Nb6 {[%clk 0:02:57]} 9. Be3 {[%clk 0:02:45]}  c5 {[%clk 0:02:55]} 10. Nc3 {[%clk 0:02:37]}  cxd4 {[%clk 0:02:52]} 11. Bxd4 {[%clk 0:02:37]}  Be6 {[%clk 0:02:49]} 12. b3 {[%clk 0:02:33]}  Na6 {[%clk 0:02:27]} 13. Bf3 {[%clk 0:02:27]}  Qc8 {[%clk 0:02:21]} 14. Qe2 {[%clk 0:02:19]}  Rd8 {[%clk 0:02:18]} 15. Rad1 {[%clk 0:02:19]}  Nc5 {[%clk 0:02:12]} 16. Nc6 {[%clk 0:01:34]}  bxc6 {[%clk 0:02:05]} 17. Bxg7 {[%clk 0:01:34]}  Kxg7 {[%clk 0:01:38]} 18. Qe5+ {[%clk 0:01:34]}  Kg8 {[%clk 0:01:38]} 19. Qxc5 {[%clk 0:01:34]}  Rxd1 {[%clk 0:01:30]} 20. Rxd1 {[%clk 0:01:34]}  Bg4 {[%clk 0:01:28]} 21. Bxg4 {[%clk 0:01:20]}  Qxg4 {[%clk 0:01:29]} 22. Qxe7 {[%clk 0:01:14]}  Rf8 {[%clk 0:00:55]} 23. h3 {[%clk 0:01:12]}  Qe6 {[%clk 0:00:39]} 24. Qxe6 {[%clk 0:01:11]}  fxe6 {[%clk 0:00:40]} 25. Rd6 {[%clk 0:01:10]}  Kf7 {[%clk 0:00:38]} 26. Rxc6 {[%clk 0:01:07]}  Rd8 {[%clk 0:00:30]} 27. Rc7+ {[%clk 0:01:07]}  Kf6 {[%clk 0:00:30]} 28. Rxa7 {[%clk 0:01:05]}  h5 {[%clk 0:00:30]} 29. c5 {[%clk 0:01:05]}  Nd7 {[%clk 0:00:27]} 30. c6 {[%clk 0:01:05]}  Ne5 {[%clk 0:00:25]} 31. c7 {[%clk 0:01:03]}  Rc8 {[%clk 0:00:25]} 32. Nb5 {[%clk 0:01:02]}  Ke7 {[%clk 0:00:25]} 33. Rb7 {[%clk 0:01:02]}  Kd7 {[%clk 0:00:25]} 34. Rb6 {[%clk 0:01:00]}  Nf7 {[%clk 0:00:23]} 35. a4 {[%clk 0:01:00]}  e5 {[%clk 0:00:20]} 36. a5 {[%clk 0:01:00]} 1-0


[Site "https://www.chess.com"]

[Event "Titled Tuesday Blitz November 30 2021"]
[White "Martins, Igor Carvalho Ribeiro"]
[Black "Ibarra Jerez, Jose Carlos"]
[WhiteFideId "2162962"]
[BlackFideId "2226332"]
[WhiteElo "2461"]
[BlackElo "2626"]
[Result "0-1"]
[Round "01"]
[TimeControl "180+1"]
[Date "2021.11.30"]
[WhiteClock "0:01:45"]
[BlackClock "0:00:37"]

1. Nf3 {[%clk 0:02:59]}  Nf6 {[%clk 0:02:56]} 2. c4 {[%clk 0:02:58]}  g6 {[%clk 0:02:44]} 3. Nc3 {[%clk 0:02:57]}  d6 {[%clk 0:02:43]} 4. d4 {[%clk 0:02:56]}  Bf5 {[%clk 0:02:43]} 5. Nh4 {[%clk 0:02:55]}  Bd7 {[%clk 0:02:42]} 6. e4 {[%clk 0:02:54]}  e5 {[%clk 0:02:42]} 7. d5 {[%clk 0:02:52]}  Nxe4 {[%clk 0:02:37]} 8. Nxe4 {[%clk 0:02:49]}  Qxh4 {[%clk 0:02:31]} 9. Bd3 {[%clk 0:02:48]}  h6 {[%clk 0:02:26]} 10. O-O {[%clk 0:02:45]}  f5 {[%clk 0:02:20]} 11. Nc3 {[%clk 0:02:42]}  Bg7 {[%clk 0:02:16]} 12. Qb3 {[%clk 0:02:40]}  b6 {[%clk 0:02:08]} 13. Nb5 {[%clk 0:02:39]}  Na6 {[%clk 0:01:57]} 14. Qa3 {[%clk 0:02:37]}  Bxb5 {[%clk 0:01:51]} 15. cxb5 {[%clk 0:02:36]}  Nc5 {[%clk 0:01:49]} 16. Bc2 {[%clk 0:02:35]}  e4 {[%clk 0:01:48]} 17. Be3 {[%clk 0:02:30]}  O-O {[%clk 0:01:38]} 18. Rab1 {[%clk 0:02:29]}  Rae8 {[%clk 0:01:30]} 19. Qxa7 {[%clk 0:02:27]}  f4 {[%clk 0:01:01]} 20. Bxc5 {[%clk 0:02:25]}  f3 {[%clk 0:00:39]} 21. Be3 {[%clk 0:01:45]}  Qg4 {[%clk 0:00:37]} 0-1


[Site "https://www.chess.com"]

[Event "Titled Tuesday Blitz November 30 2021"]
[White "Paravyan, David"]
[Black "Mouhamad, Joachim"]
[WhiteFideId "4194985"]
[BlackFideId "656410"]
[WhiteElo "2639"]
[BlackElo "2207"]
[Result "0-1"]
[Round "01"]
[TimeControl "180+1"]
[Date "2021.11.30"]
[WhiteClock "0:00:06"]
[BlackClock "0:00:19"]

1. e4 {[%clk 0:02:27]}  c6 {[%clk 0:02:59]} 2. d4 {[%clk 0:02:27]}  d5 {[%clk 0:02:59]} 3. e5 {[%clk 0:02:27]}  c5 {[%clk 0:02:59]} 4. c3 {[%clk 0:02:26]}  Nc6 {[%clk 0:02:58]} 5. a3 {[%clk 0:02:26]}  Bf5 {[%clk 0:02:54]} 6. Be3 {[%clk 0:02:25]}  e6 {[%clk 0:02:50]} 7. Nd2 {[%clk 0:02:24]}  cxd4 {[%clk 0:02:47]} 8. cxd4 {[%clk 0:02:25]}  Qb6 {[%clk 0:02:45]} 9. b4 {[%clk 0:02:22]}  h6 {[%clk 0:02:38]} 10. Ngf3 {[%clk 0:02:06]}  Bg4 {[%clk 0:02:35]} 11. Be2 {[%clk 0:02:04]}  Nge7 {[%clk 0:02:33]} 12. h3 {[%clk 0:01:52]}  Bxf3 {[%clk 0:02:33]} 13. Nxf3 {[%clk 0:01:51]}  Nf5 {[%clk 0:02:34]} 14. Bd3 {[%clk 0:01:40]}  Nxe3 {[%clk 0:02:17]} 15. fxe3 {[%clk 0:01:40]}  Be7 {[%clk 0:02:17]} 16. O-O {[%clk 0:01:39]}  f5 {[%clk 0:02:08]} 17. exf6 {[%clk 0:01:37]}  Bxf6 {[%clk 0:02:09]} 18. Kh1 {[%clk 0:01:22]}  O-O-O {[%clk 0:01:58]} 19. Nd2 {[%clk 0:01:20]}  e5 {[%clk 0:01:48]} 20. Nb3 {[%clk 0:01:13]}  Rhe8 {[%clk 0:01:43]} 21. Nc5 {[%clk 0:00:48]}  exd4 {[%clk 0:01:38]} 22. Qg4+ {[%clk 0:00:47]}  Kb8 {[%clk 0:01:28]} 23. Nd7+ {[%clk 0:00:32]}  Rxd7 {[%clk 0:01:28]} 24. Qxd7 {[%clk 0:00:32]}  Rd8 {[%clk 0:01:29]} 25. Qe6 {[%clk 0:00:26]}  dxe3 {[%clk 0:01:26]} 26. Rae1 {[%clk 0:00:22]}  d4 {[%clk 0:01:11]} 27. Rxf6 {[%clk 0:00:21]}  gxf6 {[%clk 0:01:10]} 28. Qxf6 {[%clk 0:00:22]}  Qc7 {[%clk 0:01:05]} 29. Rc1 {[%clk 0:00:18]}  Qd6 {[%clk 0:00:58]} 30. Qg7 {[%clk 0:00:14]}  Ne5 {[%clk 0:00:49]} 31. Be4 {[%clk 0:00:14]}  Nd7 {[%clk 0:00:32]} 32. Bd3 {[%clk 0:00:13]}  a6 {[%clk 0:00:31]} 33. b5 {[%clk 0:00:12]}  a5 {[%clk 0:00:30]} 34. Bf5 {[%clk 0:00:06]}  Nc5 {[%clk 0:00:28]} 35. b6 {[%clk 0:00:05]}  d3 {[%clk 0:00:26]} 36. Qc7+ {[%clk 0:00:04]}  Qxc7 {[%clk 0:00:25]} 37. bxc7+ {[%clk 0:00:05]}  Kxc7 {[%clk 0:00:26]} 38. Rxc5+ {[%clk 0:00:05]}  Kb6 {[%clk 0:00:18]} 39. Re5 {[%clk 0:00:06]}  e2 {[%clk 0:00:14]} 40. Bxd3 {[%clk 0:00:05]}  Rxd3 {[%clk 0:00:15]} 41. Rxe2 {[%clk 0:00:05]}  Rxa3 {[%clk 0:00:15]} 42. Re6+ {[%clk 0:00:06]}  Kc5 {[%clk 0:00:15]} 43. Rxh6 {[%clk 0:00:07]}  b5 {[%clk 0:00:16]} 44. g4 {[%clk 0:00:06]}  b4 {[%clk 0:00:15]} 45. g5 {[%clk 0:00:06]}  b3 {[%clk 0:00:16]} 46. Rh8 {[%clk 0:00:04]}  b2 {[%clk 0:00:16]} 47. Rb8 {[%clk 0:00:03]}  Ra1+ {[%clk 0:00:16]} 48. Kg2 {[%clk 0:00:04]}  b1=Q {[%clk 0:00:16]} 49. Rxb1 {[%clk 0:00:04]}  Rxb1 {[%clk 0:00:17]} 50. h4 {[%clk 0:00:04]}  a4 {[%clk 0:00:18]} 51. h5 {[%clk 0:00:04]}  a3 {[%clk 0:00:18]} 52. h6 {[%clk 0:00:05]}  a2 {[%clk 0:00:18]} 53. h7 {[%clk 0:00:06]}  a1=Q {[%clk 0:00:19]} 0-1


[Site "https://www.chess.com"]

[Event "Titled Tuesday Blitz November 30 2021"]
[White "Pichot, Alan"]
[Black "Lehtosaari, Mauri"]
[WhiteFideId "110973"]
[BlackFideId "501999"]
[WhiteElo "2600"]
[BlackElo "2462"]
[Result "1-0"]
[Round "01"]
[TimeControl "180+1"]
[Date "2021.11.30"]
[WhiteClock "0:00:14"]
[BlackClock "0:00:04"]

1. e4 {[%clk 0:03:00]}  c5 {[%clk 0:02:59]} 2. Nf3 {[%clk 0:03:00]}  e6 {[%clk 0:03:00]} 3. d4 {[%clk 0:03:00]}  cxd4 {[%clk 0:03:00]} 4. Nxd4 {[%clk 0:03:01]}  Qb6 {[%clk 0:03:01]} 5. Nb3 {[%clk 0:02:58]}  Qc7 {[%clk 0:03:01]} 6. Nc3 {[%clk 0:02:58]}  a6 {[%clk 0:03:02]} 7. Bd3 {[%clk 0:02:58]}  Nf6 {[%clk 0:03:01]} 8. f4 {[%clk 0:02:56]}  Bb4 {[%clk 0:02:54]} 9. O-O {[%clk 0:02:50]}  h5 {[%clk 0:02:50]} 10. Bd2 {[%clk 0:02:27]}  Nc6 {[%clk 0:02:44]} 11. e5 {[%clk 0:02:18]}  Ng4 {[%clk 0:02:40]} 12. Ne4 {[%clk 0:02:13]}  Be7 {[%clk 0:01:53]} 13. Qe2 {[%clk 0:02:08]}  b6 {[%clk 0:01:47]} 14. a4 {[%clk 0:01:57]}  Bb7 {[%clk 0:01:43]} 15. a5 {[%clk 0:01:55]}  bxa5 {[%clk 0:01:40]} 16. Nxa5 {[%clk 0:01:47]}  Nd4 {[%clk 0:01:29]} 17. Qd1 {[%clk 0:01:47]}  Nf5 {[%clk 0:01:06]} 18. Nxb7 {[%clk 0:01:36]}  Qxb7 {[%clk 0:01:04]} 19. Qe2 {[%clk 0:01:18]}  Qb6+ {[%clk 0:00:53]} 20. Kh1 {[%clk 0:01:16]}  Ngh6 {[%clk 0:00:24]} 21. c3 {[%clk 0:01:01]}  h4 {[%clk 0:00:22]} 22. h3 {[%clk 0:00:57]}  Ng3+ {[%clk 0:00:20]} 23. Nxg3 {[%clk 0:00:57]}  hxg3 {[%clk 0:00:21]} 24. Be4 {[%clk 0:00:55]}  Rb8 {[%clk 0:00:19]} 25. b4 {[%clk 0:00:54]}  Nf5 {[%clk 0:00:18]} 26. Rxa6 {[%clk 0:00:51]}  Qc7 {[%clk 0:00:16]} 27. Rfa1 {[%clk 0:00:43]}  O-O {[%clk 0:00:15]} 28. Qd3 {[%clk 0:00:41]}  g6 {[%clk 0:00:14]} 29. Bxf5 {[%clk 0:00:30]}  exf5 {[%clk 0:00:15]} 30. Qxg3 {[%clk 0:00:28]}  Rfc8 {[%clk 0:00:11]} 31. Qd3 {[%clk 0:00:28]}  Rd8 {[%clk 0:00:09]} 32. Ra7 {[%clk 0:00:25]}  Rb7 {[%clk 0:00:09]} 33. Rxb7 {[%clk 0:00:24]}  Qxb7 {[%clk 0:00:10]} 34. Be3 {[%clk 0:00:25]}  Qc8 {[%clk 0:00:07]} 35. b5 {[%clk 0:00:24]}  Bf8 {[%clk 0:00:08]} 36. c4 {[%clk 0:00:24]}  d6 {[%clk 0:00:08]} 37. Rd1 {[%clk 0:00:23]}  Qa8 {[%clk 0:00:06]} 38. Bb6 {[%clk 0:00:19]}  Rb8 {[%clk 0:00:05]} 39. Bc7 {[%clk 0:00:17]}  Rc8 {[%clk 0:00:04]} 40. exd6 {[%clk 0:00:17]}  Qa4 {[%clk 0:00:04]} 41. d7 {[%clk 0:00:16]}  Rxc7 {[%clk 0:00:04]} 42. d8=Q {[%clk 0:00:17]}  Re7 {[%clk 0:00:04]} 43. Q3d6 {[%clk 0:00:14]} 1-0


[Site "https://www.chess.com"]

[Event "Titled Tuesday Blitz November 30 2021"]
[White "Popadic, Dragan"]
[Black "Willow, Jonah B"]
[WhiteFideId "913650"]
[BlackFideId "438804"]
[WhiteElo "2174"]
[BlackElo "2261"]
[Result "0-1"]
[Round "01"]
[TimeControl "180+1"]
[Date "2021.11.30"]
[WhiteClock "0:01:27"]
[BlackClock "0:02:06"]

1. e4 {[%clk 0:03:00]}  c5 {[%clk 0:03:00]} 2. Nc3 {[%clk 0:03:00]}  Nc6 {[%clk 0:03:00]} 3. f4 {[%clk 0:03:00]}  g6 {[%clk 0:03:00]} 4. Nf3 {[%clk 0:03:00]}  Bg7 {[%clk 0:03:00]} 5. Bc4 {[%clk 0:03:00]}  e6 {[%clk 0:03:00]} 6. f5 {[%clk 0:02:59]}  Nge7 {[%clk 0:03:00]} 7. fxe6 {[%clk 0:02:59]}  dxe6 {[%clk 0:03:01]} 8. d3 {[%clk 0:02:59]}  O-O {[%clk 0:03:01]} 9. O-O {[%clk 0:02:59]}  Nd4 {[%clk 0:02:59]} 10. Nxd4 {[%clk 0:02:58]}  cxd4 {[%clk 0:02:58]} 11. Ne2 {[%clk 0:02:58]}  Nc6 {[%clk 0:02:54]} 12. Qe1 {[%clk 0:02:58]}  Na5 {[%clk 0:02:50]} 13. Bb3 {[%clk 0:02:55]}  e5 {[%clk 0:02:47]} 14. Bd2 {[%clk 0:02:50]}  Nxb3 {[%clk 0:02:46]} 15. axb3 {[%clk 0:02:50]}  Be6 {[%clk 0:02:47]} 16. Rc1 {[%clk 0:02:43]}  Qb6 {[%clk 0:02:42]} 17. Kh1 {[%clk 0:02:42]}  Rac8 {[%clk 0:02:41]} 18. Ng1 {[%clk 0:02:26]}  Rc6 {[%clk 0:02:35]} 19. Nf3 {[%clk 0:02:13]}  Rfc8 {[%clk 0:02:35]} 20. c4 {[%clk 0:02:13]}  Qxb3 {[%clk 0:02:31]} 21. Qe2 {[%clk 0:02:00]}  h6 {[%clk 0:02:27]} 22. Ra1 {[%clk 0:01:57]}  a6 {[%clk 0:02:22]} 23. h3 {[%clk 0:01:55]}  b5 {[%clk 0:02:17]} 24. cxb5 {[%clk 0:01:47]}  Qxb5 {[%clk 0:02:10]} 25. Ra2 {[%clk 0:01:28]}  Rc2 {[%clk 0:02:09]} 26. Rfa1 {[%clk 0:01:28]}  Bxa2 {[%clk 0:02:07]} 27. Rxa2 {[%clk 0:01:27]}  Rxb2 {[%clk 0:02:06]} 0-1


[Site "https://www.chess.com"]

[Event "Titled Tuesday Blitz November 30 2021"]
[White "Przybylski, Wojciech"]
[Black "Perez Ponsa, Federico"]
[WhiteFideId "1117599"]
[BlackFideId "117927"]
[WhiteElo "2247"]
[BlackElo "2672"]
[Result "0-1"]
[Round "01"]
[TimeControl "180+1"]
[Date "2021.11.30"]
[WhiteClock "0:00:38"]
[BlackClock "0:00:44"]

1. e4 {[%clk 0:02:45]}  e5 {[%clk 0:02:53]} 2. Nf3 {[%clk 0:02:42]}  Nc6 {[%clk 0:02:46]} 3. Bb5 {[%clk 0:02:42]}  a6 {[%clk 0:02:46]} 4. Ba4 {[%clk 0:02:42]}  Nf6 {[%clk 0:02:46]} 5. O-O {[%clk 0:02:42]}  b5 {[%clk 0:02:44]} 6. Bb3 {[%clk 0:02:42]}  Bc5 {[%clk 0:02:44]} 7. d3 {[%clk 0:02:40]}  h6 {[%clk 0:02:34]} 8. a4 {[%clk 0:02:39]}  Rb8 {[%clk 0:02:34]} 9. Nbd2 {[%clk 0:02:35]}  O-O {[%clk 0:02:32]} 10. axb5 {[%clk 0:02:34]}  axb5 {[%clk 0:02:32]} 11. h3 {[%clk 0:02:34]}  d6 {[%clk 0:02:31]} 12. Re1 {[%clk 0:02:32]}  Ne7 {[%clk 0:02:24]} 13. Nf1 {[%clk 0:02:27]}  Ng6 {[%clk 0:02:22]} 14. Ng3 {[%clk 0:02:24]}  Re8 {[%clk 0:01:54]} 15. c3 {[%clk 0:02:23]}  Bb6 {[%clk 0:01:54]} 16. d4 {[%clk 0:02:21]}  c5 {[%clk 0:01:52]} 17. dxe5 {[%clk 0:02:10]}  dxe5 {[%clk 0:01:47]} 18. c4 {[%clk 0:02:03]}  Be6 {[%clk 0:01:38]} 19. cxb5 {[%clk 0:02:01]}  c4 {[%clk 0:01:34]} 20. Bc2 {[%clk 0:01:57]}  Qc7 {[%clk 0:01:33]} 21. Be3 {[%clk 0:01:47]}  Red8 {[%clk 0:01:32]} 22. Qc1 {[%clk 0:01:44]}  Bxe3 {[%clk 0:01:19]} 23. Rxe3 {[%clk 0:01:38]}  Rxb5 {[%clk 0:01:19]} 24. Rc3 {[%clk 0:01:34]}  Qb6 {[%clk 0:01:19]} 25. Ra2 {[%clk 0:01:30]}  Rb8 {[%clk 0:01:17]} 26. Nd2 {[%clk 0:01:18]}  Rb4 {[%clk 0:01:06]} 27. Qa1 {[%clk 0:00:55]}  Nf4 {[%clk 0:00:58]} 28. Kf1 {[%clk 0:00:50]}  Nd7 {[%clk 0:00:48]} 29. Ne2 {[%clk 0:00:44]}  Nd3 {[%clk 0:00:45]} 30. Ra6 {[%clk 0:00:38]}  Qxf2# {[%clk 0:00:44]} 0-1


[Site "https://www.chess.com"]